[Event "Early-Titled-Tuesday-Blitz-January-30-2024"]
[Site "Chess.com"]
[Date "2024.01.30"]
[Round "4"]
[White "SHIVACalypso"]
[Black "Ginger_GM"]
[Result "0-1"]
[WhiteElo "2445"]
[BlackElo "2685"]
[TimeControl "180+1"]
[EndTime "8:38:53 PST"]
[Termination "Ginger_GM won by resignation"]

1. Nf3 {[%clk 0:03:00.7]} 1... f5 {[%clk 0:02:59.2]} 2. c4 {[%clk 0:02:55.7]}
2... Nf6 {[%clk 0:02:58.8]} 3. g3 {[%clk 0:02:55.6]} 3... d6 {[%clk 0:02:59]} 4.
Bg2 {[%clk 0:02:56.1]} 4... e5 {[%clk 0:02:59.3]} 5. d3 {[%clk 0:02:56.7]} 5...
Be7 {[%clk 0:02:59.4]} 6. O-O {[%clk 0:02:56.9]} 6... O-O {[%clk 0:02:59.2]} 7.
Nc3 {[%clk 0:02:57.6]} 7... Qe8 {[%clk 0:02:59.3]} 8. b4 {[%clk 0:02:57]} 8...
Qh5 {[%clk 0:02:59]} 9. a4 {[%clk 0:02:55.8]} 9... f4 {[%clk 0:02:59.1]} 10. Nd5
{[%clk 0:02:51.6]} 10... Nxd5 {[%clk 0:02:58.1]} 11. cxd5 {[%clk 0:02:52.5]}
11... Bh3 {[%clk 0:02:57.7]} 12. Qc2 {[%clk 0:02:47.7]} 12... Bd8 {[%clk
0:02:57.1]} 13. d4 {[%clk 0:02:40.5]} 13... Bf5 {[%clk 0:02:27.2]} 14. Qc3
{[%clk 0:02:38.3]} 14... e4 {[%clk 0:02:27.2]} 15. Nd2 {[%clk 0:02:27.9]} 15...
Qxe2 {[%clk 0:02:18]} 16. Nxe4 {[%clk 0:02:15.8]} 16... Bxe4 {[%clk 0:01:57.1]}
17. Re1 {[%clk 0:02:15.8]} 17... Qd3 {[%clk 0:01:47.1]} 18. Bb2 {[%clk
0:01:58.9]} 18... Qxc3 {[%clk 0:01:46.2]} 19. Bxc3 {[%clk 0:01:59.8]} 19... Bxg2
{[%clk 0:01:46.3]} 20. Kxg2 {[%clk 0:02:00.1]} 20... f3+ {[%clk 0:01:46.5]} 21.
Kh3 {[%clk 0:01:59.9]} 21... Nd7 {[%clk 0:01:46.7]} 22. g4 {[%clk 0:01:59]}
22... Nf6 {[%clk 0:01:46.5]} 23. Bd2 {[%clk 0:01:56.2]} 23... Nxd5 {[%clk
0:01:46.5]} 24. Kg3 {[%clk 0:01:56.4]} 24... Bf6 {[%clk 0:01:43.9]} 25. Re4
{[%clk 0:01:54.9]} 25... Rae8 {[%clk 0:01:43.3]} 26. Rae1 {[%clk 0:01:54.4]}
26... Rxe4 {[%clk 0:01:43.2]} 27. Rxe4 {[%clk 0:01:55.3]} 27... Bd8 {[%clk
0:01:37.9]} 28. h4 {[%clk 0:01:52.8]} 28... h6 {[%clk 0:01:37.2]} 29. b5 {[%clk
0:01:50.4]} 29... c6 {[%clk 0:01:24.6]} 30. Re6 {[%clk 0:01:45.8]} 30... Kf7
{[%clk 0:01:23.1]} 31. Re4 {[%clk 0:01:45.5]} 31... Re8 {[%clk 0:01:21.1]} 32.
Kxf3 {[%clk 0:01:44.5]} 32... Rxe4 {[%clk 0:01:20.9]} 33. Kxe4 {[%clk
0:01:45.4]} 33... Bxh4 {[%clk 0:01:21]} 34. f3 {[%clk 0:01:43.7]} 34... g5
{[%clk 0:01:15.7]} 35. Bc1 {[%clk 0:01:33]} 35... Ke6 {[%clk 0:01:15]} 36. Ba3
{[%clk 0:01:32.8]} 36... Nf6+ {[%clk 0:01:14.8]} 37. Kd3 {[%clk 0:01:32.9]}
37... Kd5 {[%clk 0:01:15.3]} 38. Bb4 {[%clk 0:01:28.5]} 38... Nd7 {[%clk
0:01:12.8]} 39. Ba5 {[%clk 0:01:28.2]} 39... Nf8 {[%clk 0:01:11.6]} 40. Bc7
{[%clk 0:01:25.7]} 40... Ne6 {[%clk 0:01:11.3]} 41. Bb8 {[%clk 0:01:25.9]} 41...
a6 {[%clk 0:01:10.7]} 0-1

[Event "Early-Titled-Tuesday-Blitz-January-30-2024"]
[Site "Chess.com"]
[Date "2024.01.30"]
[Round "4"]
[White "Djager97"]
[Black "GMKrikor"]
[Result "0-1"]
[WhiteElo "2568"]
[BlackElo "2794"]
[TimeControl "180+1"]
[EndTime "8:38:59 PST"]
[Termination "GMKrikor won by resignation"]

1. e4 {[%clk 0:03:00.9]} 1... e6 {[%clk 0:03:00.1]} 2. d4 {[%clk 0:03:00]} 2...
d5 {[%clk 0:03:00.8]} 3. Nc3 {[%clk 0:02:59.3]} 3... Nf6 {[%clk 0:03:00.6]} 4.
Bg5 {[%clk 0:02:56.8]} 4... dxe4 {[%clk 0:03:01]} 5. Nxe4 {[%clk 0:02:56.4]}
5... Be7 {[%clk 0:03:01.5]} 6. Bxf6 {[%clk 0:02:56.9]} 6... gxf6 {[%clk
0:03:02]} 7. Nf3 {[%clk 0:02:57.4]} 7... f5 {[%clk 0:03:02.5]} 8. Nc3 {[%clk
0:02:56.4]} 8... a6 {[%clk 0:03:03.1]} 9. g3 {[%clk 0:02:54.1]} 9... b5 {[%clk
0:03:03.3]} 10. Bg2 {[%clk 0:02:54]} 10... Bb7 {[%clk 0:03:04]} 11. O-O {[%clk
0:02:53.5]} 11... O-O {[%clk 0:03:03]} 12. Re1 {[%clk 0:02:46.9]} 12... c5
{[%clk 0:02:57.3]} 13. d5 {[%clk 0:01:45.9]} 13... b4 {[%clk 0:02:51.6]} 14.
dxe6 {[%clk 0:01:46.3]} 14... bxc3 {[%clk 0:02:44.1]} 15. exf7+ {[%clk
0:01:27.7]} 15... Rxf7 {[%clk 0:02:35.8]} 16. Qxd8+ {[%clk 0:01:20.4]} 16...
Bxd8 {[%clk 0:02:35.7]} 17. Re8+ {[%clk 0:01:03.1]} 17... Rf8 {[%clk 0:02:34.8]}
18. Rxf8+ {[%clk 0:01:03.4]} 18... Kxf8 {[%clk 0:02:34.7]} 19. bxc3 {[%clk
0:01:04.3]} 19... Bf6 {[%clk 0:02:07.4]} 20. Rb1 {[%clk 0:01:02.2]} 20... Be4
{[%clk 0:02:05]} 21. c4 {[%clk 0:00:43.7]} 21... Nd7 {[%clk 0:02:00.1]} 22. Rd1
{[%clk 0:00:31.8]} 22... Ke7 {[%clk 0:01:45.3]} 23. Ne1 {[%clk 0:00:29.6]} 23...
Ne5 {[%clk 0:01:40.1]} 24. Bxe4 {[%clk 0:00:26.4]} 24... fxe4 {[%clk 0:01:40]}
25. Rd5 {[%clk 0:00:27.3]} 25... Rd8 {[%clk 0:01:30.3]} 26. Rxc5 {[%clk
0:00:26.5]} 26... Rd1 {[%clk 0:01:28.8]} 0-1

[Event "Early-Titled-Tuesday-Blitz-January-30-2024"]
[Site "Chess.com"]
[Date "2024.01.30"]
[Round "4"]
[White "hsd2016"]
[Black "gahryman"]
[Result "0-1"]
[WhiteElo "2310"]
[BlackElo "2660"]
[TimeControl "180+1"]
[EndTime "8:39:02 PST"]
[Termination "gahryman won by resignation"]

1. e4 {[%clk 0:03:00.9]} 1... c5 {[%clk 0:02:58.9]} 2. Nf3 {[%clk 0:02:56.4]}
2... Nc6 {[%clk 0:02:59]} 3. d4 {[%clk 0:02:55.6]} 3... cxd4 {[%clk 0:02:59.9]}
4. Nxd4 {[%clk 0:02:56.5]} 4... e5 {[%clk 0:02:59.9]} 5. Nb5 {[%clk 0:02:55.9]}
5... d6 {[%clk 0:03:00.1]} 6. N1c3 {[%clk 0:02:55]} 6... a6 {[%clk 0:02:59.7]}
7. Na3 {[%clk 0:02:54.4]} 7... Be7 {[%clk 0:03:00.4]} 8. Be3 {[%clk 0:02:35.6]}
8... Nf6 {[%clk 0:02:46.3]} 9. Nc4 {[%clk 0:02:26.8]} 9... b5 {[%clk 0:02:34.8]}
10. Nb6 {[%clk 0:02:23.9]} 10... Rb8 {[%clk 0:02:35.2]} 11. Nxc8 {[%clk
0:02:23.9]} 11... Qxc8 {[%clk 0:02:36.1]} 12. f3 {[%clk 0:02:14.8]} 12... O-O
{[%clk 0:02:34.8]} 13. a3 {[%clk 0:02:10.1]} 13... Bd8 {[%clk 0:02:24.6]} 14.
Qxd6 {[%clk 0:01:59.9]} 14... Nd4 {[%clk 0:02:16.8]} 15. Bd3 {[%clk 0:01:30.8]}
15... Bb6 {[%clk 0:02:08.8]} 16. Bg5 {[%clk 0:00:34.4]} 16... Bc7 {[%clk
0:01:21.9]} 17. Qc5 {[%clk 0:00:15.6]} 17... Ne6 {[%clk 0:01:21.7]} 18. Qe3
{[%clk 0:00:15.9]} 18... Bb6 {[%clk 0:01:22.1]} 19. Qxb6 {[%clk 0:00:15.5]}
19... Rxb6 {[%clk 0:01:21.4]} 0-1

[Event "Early-Titled-Tuesday-Blitz-January-30-2024"]
[Site "Chess.com"]
[Date "2024.01.30"]
[Round "4"]
[White "Alenzer"]
[Black "Brahianzevich"]
[Result "0-1"]
[WhiteElo "2132"]
[BlackElo "2368"]
[TimeControl "180+1"]
[EndTime "8:39:02 PST"]
[Termination "Brahianzevich won by checkmate"]

1. e4 {[%clk 0:03:00.9]} 1... c5 {[%clk 0:02:57.1]} 2. Nf3 {[%clk 0:02:58.2]}
2... d6 {[%clk 0:02:57.5]} 3. c3 {[%clk 0:02:57.7]} 3... Nf6 {[%clk 0:02:57]} 4.
h3 {[%clk 0:02:56.9]} 4... Nc6 {[%clk 0:02:54.6]} 5. Bd3 {[%clk 0:02:56]} 5...
g5 {[%clk 0:02:50.1]} 6. Bc2 {[%clk 0:02:41.4]} 6... g4 {[%clk 0:02:49.3]} 7.
hxg4 {[%clk 0:02:37.7]} 7... Bxg4 {[%clk 0:02:50.2]} 8. Qe2 {[%clk 0:02:22.7]}
8... Qa5 {[%clk 0:02:36.2]} 9. Na3 {[%clk 0:02:14.2]} 9... O-O-O {[%clk
0:02:33]} 10. Nc4 {[%clk 0:02:07.5]} 10... Qc7 {[%clk 0:02:32.6]} 11. a4 {[%clk
0:02:04.8]} 11... Bg7 {[%clk 0:02:15.2]} 12. a5 {[%clk 0:02:03]} 12... e6 {[%clk
0:01:56.1]} 13. d3 {[%clk 0:01:46.6]} 13... d5 {[%clk 0:01:55.7]} 14. Ne3 {[%clk
0:01:32.8]} 14... Bh5 {[%clk 0:01:55.2]} 15. exd5 {[%clk 0:01:10.9]} 15... exd5
{[%clk 0:01:53.8]} 16. O-O {[%clk 0:00:59.6]} 16... Rhe8 {[%clk 0:01:52]} 17.
Qd2 {[%clk 0:00:18.2]} 17... Bxf3 {[%clk 0:01:43.5]} 18. gxf3 {[%clk 0:00:18.1]}
18... Bh6 {[%clk 0:01:44.1]} 19. d4 {[%clk 0:00:16]} 19... Rg8+ {[%clk
0:01:35.9]} 20. Kh1 {[%clk 0:00:13.4]} 20... Qf4 {[%clk 0:01:35.7]} 21. Ng2
{[%clk 0:00:10.1]} 21... Qxf3 {[%clk 0:01:33.3]} 22. Qxh6 {[%clk 0:00:08.8]}
22... Qxg2# {[%clk 0:01:32.9]} 0-1

[Event "Early-Titled-Tuesday-Blitz-January-30-2024"]
[Site "Chess.com"]
[Date "2024.01.30"]
[Round "4"]
[White "Flaccidmoves"]
[Black "Sam_ChessMood"]
[Result "0-1"]
[WhiteElo "2460"]
[BlackElo "2902"]
[TimeControl "180+1"]
[EndTime "8:39:07 PST"]
[Termination "Sam_ChessMood won by resignation"]

1. d4 {[%clk 0:03:00.9]} 1... Nf6 {[%clk 0:02:59.8]} 2. c4 {[%clk 0:03:01.1]}
2... e6 {[%clk 0:03:00]} 3. g3 {[%clk 0:02:59.7]} 3... d5 {[%clk 0:02:58.2]} 4.
Bg2 {[%clk 0:02:59.7]} 4... Be7 {[%clk 0:02:58]} 5. Nf3 {[%clk 0:02:59.4]} 5...
O-O {[%clk 0:02:58.2]} 6. O-O {[%clk 0:02:59.3]} 6... dxc4 {[%clk 0:02:58.6]} 7.
Qc2 {[%clk 0:02:58.2]} 7... a6 {[%clk 0:02:58.3]} 8. Qxc4 {[%clk 0:02:57.1]}
8... b5 {[%clk 0:02:57.8]} 9. Qc2 {[%clk 0:02:57.5]} 9... Bb7 {[%clk 0:02:57.9]}
10. Bd2 {[%clk 0:02:57.1]} 10... Be4 {[%clk 0:02:54.9]} 11. Qc1 {[%clk
0:02:48.6]} 11... c6 {[%clk 0:02:55.2]} 12. Nc3 {[%clk 0:02:34.2]} 12... Bxf3
{[%clk 0:02:54.9]} 13. Bxf3 {[%clk 0:02:33.4]} 13... Qxd4 {[%clk 0:02:55]} 14.
Rd1 {[%clk 0:02:23.4]} 14... Qb6 {[%clk 0:02:48.1]} 15. Be3 {[%clk 0:02:17.8]}
15... Qb7 {[%clk 0:02:29.5]} 16. a4 {[%clk 0:02:05.4]} 16... Nd5 {[%clk
0:02:17]} 17. Bd2 {[%clk 0:01:07.8]} 17... Nd7 {[%clk 0:02:14.7]} 18. e4 {[%clk
0:01:07]} 18... Nb4 {[%clk 0:02:14]} 19. Bf4 {[%clk 0:00:57.8]} 19... Nc5 {[%clk
0:02:12.1]} 20. Qe3 {[%clk 0:00:52.2]} 20... Nc2 {[%clk 0:02:11.1]} 21. Qe2
{[%clk 0:00:51.6]} 21... Nxa1 {[%clk 0:02:09.1]} 22. Rxa1 {[%clk 0:00:52.5]}
22... b4 {[%clk 0:02:08.6]} 23. Nd1 {[%clk 0:00:51.2]} 23... Nb3 {[%clk
0:02:07.4]} 24. Rb1 {[%clk 0:00:50.2]} 24... Nd4 {[%clk 0:02:07.6]} 25. Qe3
{[%clk 0:00:45.4]} 25... c5 {[%clk 0:02:06.5]} 26. Bg2 {[%clk 0:00:43.9]} 26...
Rad8 {[%clk 0:02:06.3]} 27. e5 {[%clk 0:00:37.1]} 27... Qd7 {[%clk 0:02:01.8]}
28. Be4 {[%clk 0:00:27.2]} 28... Qxa4 {[%clk 0:01:58.9]} 29. h4 {[%clk
0:00:20.3]} 29... Qb3 {[%clk 0:01:54.9]} 30. Qxb3 {[%clk 0:00:17.7]} 30... Nxb3
{[%clk 0:01:54.8]} 31. Ne3 {[%clk 0:00:18.3]} 31... Nd2 {[%clk 0:01:54.7]} 0-1

[Event "Early-Titled-Tuesday-Blitz-January-30-2024"]
[Site "Chess.com"]
[Date "2024.01.30"]
[Round "4"]
[White "eightbyeightchess"]
[Black "Martial2008"]
[Result "0-1"]
[WhiteElo "2434"]
[BlackElo "2684"]
[TimeControl "180+1"]
[EndTime "8:39:15 PST"]
[Termination "Martial2008 won on time"]

1. e4 {[%clk 0:03:00.9]} 1... e5 {[%clk 0:03:00.9]} 2. Nf3 {[%clk 0:03:01]} 2...
Nc6 {[%clk 0:03:00.7]} 3. Bb5 {[%clk 0:03:00.4]} 3... a6 {[%clk 0:03:00.7]} 4.
Ba4 {[%clk 0:03:00.4]} 4... d6 {[%clk 0:03:01.3]} 5. d4 {[%clk 0:02:59.1]} 5...
b5 {[%clk 0:02:59.7]} 6. Bb3 {[%clk 0:02:59]} 6... Nxd4 {[%clk 0:02:59.8]} 7.
Nxd4 {[%clk 0:02:55.8]} 7... exd4 {[%clk 0:02:58.8]} 8. c3 {[%clk 0:02:52.5]}
8... c5 {[%clk 0:02:55.9]} 9. cxd4 {[%clk 0:02:51]} 9... c4 {[%clk 0:02:55.9]}
10. Bc2 {[%clk 0:02:51.2]} 10... d5 {[%clk 0:02:56.4]} 11. O-O {[%clk
0:02:47.4]} 11... g6 {[%clk 0:02:53]} 12. exd5 {[%clk 0:02:41.6]} 12... Ne7
{[%clk 0:02:51.3]} 13. Bg5 {[%clk 0:02:23.5]} 13... Bg7 {[%clk 0:02:42.3]} 14.
Re1 {[%clk 0:01:33.3]} 14... f6 {[%clk 0:02:41.1]} 15. Qf3 {[%clk 0:01:16.1]}
15... fxg5 {[%clk 0:02:24.6]} 16. d6 {[%clk 0:01:16.1]} 16... Qxd6 {[%clk
0:02:24.1]} 17. Qxa8 {[%clk 0:01:14.1]} 17... O-O {[%clk 0:02:23.9]} 18. Qa7
{[%clk 0:00:40.2]} 18... Bxd4 {[%clk 0:02:20.3]} 19. Qxe7 {[%clk 0:00:37.1]}
19... Qxe7 {[%clk 0:02:19.9]} 20. Rxe7 {[%clk 0:00:36.7]} 20... Bxb2 {[%clk
0:02:05.7]} 21. Nd2 {[%clk 0:00:19.5]} 21... Bxa1 {[%clk 0:02:05.2]} 22. Be4
{[%clk 0:00:18.3]} 22... Bd4 {[%clk 0:02:04.5]} 23. Bd5+ {[%clk 0:00:16.5]}
23... Kh8 {[%clk 0:02:03.7]} 24. Nf3 {[%clk 0:00:15.5]} 24... Bc5 {[%clk
0:02:04.1]} 25. Rc7 {[%clk 0:00:14.8]} 25... Bd6 {[%clk 0:02:00.9]} 26. Rc6
{[%clk 0:00:04.7]} 26... Be7 {[%clk 0:01:50.5]} 27. Rc7 {[%clk 0:00:04.6]} 27...
Bf6 {[%clk 0:01:48.2]} 28. g3 {[%clk 0:00:03.6]} 28... Bg4 {[%clk 0:01:46]} 29.
Kg2 {[%clk 0:00:02.8]} 29... Bxf3+ {[%clk 0:01:45.8]} 30. Bxf3 {[%clk
0:00:02.3]} 30... a5 {[%clk 0:01:43.9]} 0-1

[Event "Early-Titled-Tuesday-Blitz-January-30-2024"]
[Site "Chess.com"]
[Date "2024.01.30"]
[Round "4"]
[White "shirovin"]
[Black "DenLaz"]
[Result "0-1"]
[WhiteElo "2053"]
[BlackElo "3059"]
[TimeControl "180+1"]
[EndTime "8:39:16 PST"]
[Termination "DenLaz won by resignation"]

1. e4 {[%clk 0:03:00.9]} 1... c5 {[%clk 0:03:00]} 2. Nf3 {[%clk 0:02:59.6]} 2...
e6 {[%clk 0:03:00.7]} 3. d4 {[%clk 0:02:58.5]} 3... cxd4 {[%clk 0:03:01.6]} 4.
Nxd4 {[%clk 0:02:58.6]} 4... Nc6 {[%clk 0:03:02.3]} 5. Nc3 {[%clk 0:02:57.1]}
5... Qc7 {[%clk 0:03:02.8]} 6. Be3 {[%clk 0:02:56]} 6... a6 {[%clk 0:03:03.3]}
7. Be2 {[%clk 0:02:55.6]} 7... Nf6 {[%clk 0:03:03.4]} 8. O-O {[%clk 0:02:53.3]}
8... Be7 {[%clk 0:03:03.8]} 9. f4 {[%clk 0:02:51.9]} 9... d6 {[%clk 0:03:04.5]}
10. Kh1 {[%clk 0:02:50.6]} 10... O-O {[%clk 0:03:04.5]} 11. Qe1 {[%clk
0:02:49.9]} 11... Bd7 {[%clk 0:03:04.9]} 12. Qg3 {[%clk 0:02:48.5]} 12... b5
{[%clk 0:03:04]} 13. a3 {[%clk 0:02:44.2]} 13... Rab8 {[%clk 0:03:03.2]} 14. Bd3
{[%clk 0:02:41]} 14... b4 {[%clk 0:02:55.2]} 15. Nd1 {[%clk 0:02:29.4]} 15...
bxa3 {[%clk 0:02:50.1]} 16. bxa3 {[%clk 0:02:27.3]} 16... Na5 {[%clk 0:02:36]}
17. e5 {[%clk 0:02:16.9]} 17... Nd5 {[%clk 0:02:34.9]} 18. Bg1 {[%clk
0:01:47.2]} 18... Nc4 {[%clk 0:02:22.3]} 19. Qh3 {[%clk 0:01:38.4]} 19... g6
{[%clk 0:02:19.1]} 20. Nf3 {[%clk 0:01:23.6]} 20... dxe5 {[%clk 0:02:13.5]} 21.
fxe5 {[%clk 0:01:22.4]} 21... Nxe5 {[%clk 0:02:11.1]} 22. Nxe5 {[%clk
0:01:05.5]} 22... Qxe5 {[%clk 0:02:12]} 23. Nf2 {[%clk 0:01:03.8]} 23... Qg7
{[%clk 0:02:04.8]} 24. Bxa6 {[%clk 0:00:56.2]} 24... Nf4 {[%clk 0:01:58.9]} 25.
Qf3 {[%clk 0:00:48.2]} 25... Nd5 {[%clk 0:01:50.4]} 26. Bd3 {[%clk 0:00:44.5]}
26... f5 {[%clk 0:01:38.3]} 27. a4 {[%clk 0:00:39.9]} 27... Bc6 {[%clk
0:01:35.2]} 28. Qe2 {[%clk 0:00:26.1]} 28... Nf4 {[%clk 0:01:34.1]} 0-1

[Event "Early-Titled-Tuesday-Blitz-January-30-2024"]
[Site "Chess.com"]
[Date "2024.01.30"]
[Round "4"]
[White "leotobares"]
[Black "bulletteemo"]
[Result "0-1"]
[WhiteElo "2328"]
[BlackElo "2518"]
[TimeControl "180+1"]
[EndTime "8:39:17 PST"]
[Termination "bulletteemo won by resignation"]

1. c4 {[%clk 0:03:00.9]} 1... g6 {[%clk 0:00:23.1]} 2. Nc3 {[%clk 0:02:58.4]}
2... Bg7 {[%clk 0:00:23.1]} 3. g3 {[%clk 0:02:58.3]} 3... c5 {[%clk 0:00:23.7]}
4. Bg2 {[%clk 0:02:58.6]} 4... Nc6 {[%clk 0:00:24.5]} 5. Nf3 {[%clk 0:02:58.6]}
5... d6 {[%clk 0:00:22.8]} 6. O-O {[%clk 0:02:58.3]} 6... Bg4 {[%clk 0:00:23.5]}
7. a3 {[%clk 0:02:56.4]} 7... e6 {[%clk 0:00:23.5]} 8. b4 {[%clk 0:02:55.5]}
8... cxb4 {[%clk 0:00:23.4]} 9. axb4 {[%clk 0:02:55.7]} 9... Nxb4 {[%clk
0:00:21.8]} 10. Ba3 {[%clk 0:02:55.2]} 10... Nc6 {[%clk 0:00:21.7]} 11. Rb1
{[%clk 0:02:54.2]} 11... Nge7 {[%clk 0:00:21]} 12. Rxb7 {[%clk 0:02:49.5]} 12...
O-O {[%clk 0:00:21.1]} 13. Nb5 {[%clk 0:02:41.8]} 13... Nf5 {[%clk 0:00:20]} 14.
e4 {[%clk 0:02:34.3]} 14... Nfd4 {[%clk 0:00:18.5]} 15. Nxd6 {[%clk 0:02:31.7]}
15... Qa5 {[%clk 0:00:15.6]} 16. Bc1 {[%clk 0:01:59.5]} 16... Qa6 {[%clk
0:00:15.1]} 17. Rb1 {[%clk 0:01:51.2]} 17... Ne5 {[%clk 0:00:14.5]} 18. Nb5
{[%clk 0:01:23.2]} 18... Nexf3+ {[%clk 0:00:13.5]} 19. Bxf3 {[%clk 0:01:24]}
19... Bxf3 {[%clk 0:00:14.2]} 20. Qxf3 {[%clk 0:01:21.1]} 20... Nxf3+ {[%clk
0:00:14.5]} 21. Kg2 {[%clk 0:01:21.5]} 21... Nd4 {[%clk 0:00:14.3]} 22. Nc7
{[%clk 0:01:19.7]} 22... Qc6 {[%clk 0:00:14.2]} 23. Nxa8 {[%clk 0:01:19.3]}
23... Qxe4+ {[%clk 0:00:14.6]} 24. f3 {[%clk 0:01:19.6]} 24... Qxb1 {[%clk
0:00:15]} 0-1

[Event "Early-Titled-Tuesday-Blitz-January-30-2024"]
[Site "Chess.com"]
[Date "2024.01.30"]
[Round "4"]
[White "akinov-akinseye"]
[Black "Resignify"]
[Result "0-1"]
[WhiteElo "1899"]
[BlackElo "2281"]
[TimeControl "180+1"]
[EndTime "8:39:30 PST"]
[Termination "Resignify won by resignation"]

1. e4 {[%clk 0:02:55.6]} 1... d6 {[%clk 0:02:59.2]} 2. d4 {[%clk 0:02:52.1]}
2... Nf6 {[%clk 0:02:59.5]} 3. Nc3 {[%clk 0:02:51.1]} 3... g6 {[%clk 0:02:59.7]}
4. f3 {[%clk 0:02:48.8]} 4... c6 {[%clk 0:02:58.6]} 5. Be3 {[%clk 0:02:47.5]}
5... b5 {[%clk 0:02:58.8]} 6. a3 {[%clk 0:02:44.8]} 6... a6 {[%clk 0:02:55.9]}
7. Qd2 {[%clk 0:02:44.9]} 7... Nbd7 {[%clk 0:02:55.8]} 8. Bh6 {[%clk 0:02:43.8]}
8... Bxh6 {[%clk 0:02:51]} 9. Qxh6 {[%clk 0:02:41.6]} 9... Nb6 {[%clk
0:02:51.1]} 10. h4 {[%clk 0:02:40.4]} 10... Nc4 {[%clk 0:02:44]} 11. Bxc4 {[%clk
0:02:38.6]} 11... bxc4 {[%clk 0:02:43.8]} 12. Nge2 {[%clk 0:02:33.3]} 12... Qb6
{[%clk 0:02:40.1]} 13. Rb1 {[%clk 0:02:23.1]} 13... Bb7 {[%clk 0:02:15.6]} 14.
e5 {[%clk 0:02:15.7]} 14... dxe5 {[%clk 0:02:02.1]} 15. dxe5 {[%clk 0:02:15.7]}
15... Nd5 {[%clk 0:02:00.1]} 16. Nxd5 {[%clk 0:01:51.4]} 16... cxd5 {[%clk
0:01:59.4]} 17. h5 {[%clk 0:01:50.3]} 17... O-O-O {[%clk 0:01:52.4]} 18. Qg7
{[%clk 0:01:40.1]} 18... gxh5 {[%clk 0:00:56]} 19. Rxh5 {[%clk 0:01:34.7]} 19...
Qg6 {[%clk 0:00:50.1]} 20. Rg5 {[%clk 0:01:07.6]} 20... Qxc2 {[%clk 0:00:42.9]}
21. Rc1 {[%clk 0:01:06.8]} 21... Qxb2 {[%clk 0:00:39.7]} 22. Qxf7 {[%clk
0:01:05.7]} 22... Qxa3 {[%clk 0:00:35.4]} 23. Qxe7 {[%clk 0:01:04.5]} 23... Qxe7
{[%clk 0:00:35.1]} 0-1

[Event "Early-Titled-Tuesday-Blitz-January-30-2024"]
[Site "Chess.com"]
[Date "2024.01.30"]
[Round "4"]
[White "SuanFernandes"]
[Black "SharapovEvgeny"]
[Result "0-1"]
[WhiteElo "2327"]
[BlackElo "2537"]
[TimeControl "180+1"]
[EndTime "8:39:31 PST"]
[Termination "SharapovEvgeny won by resignation"]

1. d4 {[%clk 0:03:00.9]} 1... Nf6 {[%clk 0:02:59.4]} 2. c4 {[%clk 0:03:01.5]}
2... e6 {[%clk 0:02:59.6]} 3. Nf3 {[%clk 0:03:01.4]} 3... Bb4+ {[%clk
0:02:59.3]} 4. Nbd2 {[%clk 0:03:01.1]} 4... b6 {[%clk 0:02:58.4]} 5. e3 {[%clk
0:03:00.7]} 5... Bb7 {[%clk 0:02:58.4]} 6. Be2 {[%clk 0:02:58.4]} 6... O-O
{[%clk 0:02:58.2]} 7. O-O {[%clk 0:02:58.8]} 7... Bxd2 {[%clk 0:02:57.5]} 8.
Qxd2 {[%clk 0:02:57.2]} 8... Ne4 {[%clk 0:02:57.3]} 9. Qc2 {[%clk 0:02:57.6]}
9... f5 {[%clk 0:02:56.9]} 10. a3 {[%clk 0:02:51.2]} 10... d6 {[%clk 0:02:56.6]}
11. b4 {[%clk 0:02:51.2]} 11... c5 {[%clk 0:02:53.2]} 12. Bb2 {[%clk 0:02:50.8]}
12... Nd7 {[%clk 0:02:52.8]} 13. Rad1 {[%clk 0:02:46.6]} 13... Qe7 {[%clk
0:02:52.7]} 14. d5 {[%clk 0:02:42.6]} 14... exd5 {[%clk 0:02:50.4]} 15. cxd5
{[%clk 0:02:42.5]} 15... Ndf6 {[%clk 0:02:50.3]} 16. Qb3 {[%clk 0:02:16.2]}
16... Rae8 {[%clk 0:02:47.2]} 17. Bb5 {[%clk 0:01:52.8]} 17... Rc8 {[%clk
0:02:44.9]} 18. bxc5 {[%clk 0:01:47]} 18... bxc5 {[%clk 0:02:41.1]} 19. Bc4
{[%clk 0:01:30.3]} 19... Rb8 {[%clk 0:02:40.8]} 20. Qc2 {[%clk 0:01:27.4]} 20...
Kh8 {[%clk 0:02:40.2]} 21. Nh4 {[%clk 0:01:24.6]} 21... Nxd5 {[%clk 0:02:24.6]}
22. Bxd5 {[%clk 0:01:23.4]} 22... Bxd5 {[%clk 0:02:24.4]} 23. Rxd5 {[%clk
0:01:03.1]} 23... Qxh4 {[%clk 0:02:20.9]} 24. f3 {[%clk 0:00:57.3]} 24... Ng5
{[%clk 0:02:05.5]} 25. Rxd6 {[%clk 0:00:50.3]} 25... Nf7 {[%clk 0:01:50.6]} 26.
Rd7 {[%clk 0:00:46.1]} 26... Qg5 {[%clk 0:01:47.4]} 27. f4 {[%clk 0:00:41.6]}
27... Qg6 {[%clk 0:01:44.6]} 28. Rxa7 {[%clk 0:00:33.3]} 28... Qb6 {[%clk
0:01:39.5]} 29. Qc3 {[%clk 0:00:30.6]} 29... Qxb2 {[%clk 0:01:37.4]} 30. Qxb2
{[%clk 0:00:26.2]} 30... Rxb2 {[%clk 0:01:37.1]} 31. Rc1 {[%clk 0:00:27.1]}
31... Nd6 {[%clk 0:01:18]} 32. Rxc5 {[%clk 0:00:24.4]} 32... Rb1+ {[%clk
0:01:18]} 0-1